Workbook

Sheet General Information
A1: This workbook has 5 active worksheets - General Information, Instructions, Schedule, Cover, and Diesel - Tax Refund Computation. There is a hidden worksheet labeled Tables which you will not have access to. Press the down arrow to read through the worksheet. If you receive a Security Warning, select Enable Content to allow the macros to run.
A2: GENERAL INFORMATION
A3: General Data Entry
A4: 1. All gallon and dollar amounts must be entered as whole numbers. Do not use decimals. Round to the nearest gallon or dollar amount.
A5: 2. Dates must be entered using a proper date format. Proper date formats are MMMM DD, YYYY (i.e., August 13, 2019) or MM/DD/YY (i.e. 08/13/19 or 8/13/19).
A6: 3. Enter the CDTFA nine-digit account number excluding letters or dashes (e.g. 123456789). Eight- digit account numbers require a leading zero (e.g. 012345678).
A7: 4. Federal Employer Identification Numbers (FEINs) and Social Security Numbers (SSNs) are to be entered using nine digits without dashes and letters.
A8: 5. Two-digit identification (ID) type codes are required to identify ID numbers: Use 24 for FEIN, 34 for SSN, or 49 for account number.
A9: 6. The Tax Rate is reported with a decimal point and three digits. No leading zero should be entered. Proper rate format is .nnn (e.g., .360 or .357).
A10: 7. No Activity Reports. When submitting a "No Activity Report," be sure to do the following: 1) Identify the file as a "No Activity Report" file on the Cover worksheet; 2) Make sure no transactions are reported on the Schedule worksheet; and 3) Click the "Create FLT File" button on the Instructions worksheet.
A11: Click here to return to Cover worksheet
A12: Cover Worksheet - General
A13: 1. Dates must be entered using a proper date format. Proper date formats are MMMM DD, YYYY (i.e., August 13, 2019) or MM/DD/YY (i.e. 08/13/19 or 8/13/19).
A14: 2. CDTFA account numbers must be entered using the nine-digit numeric portion, no dashes or letters (e.g. 023456789). Eight-digit account numbers require a leading zero (e.g. 012345678).
A15: 3. Federal Employer Identification Numbers (FEINs) and Social Security Numbers (SSNs) are to be entered using nine digits without dashes and letters.
A16: 4. Two-digit identification (ID) qualifier codes are required to identify ID numbers: Use 24 for FEIN, and 34 for SSN.
A17: 5. All gallon and dollar amounts must be entered as whole numbers. Do not use decimals. Round to the nearest gallon or dollar amount.
A18: 6. No Activity Reports. When submitting a "No Activity Report," make sure that no transactions are reported on the Schedule worksheet.
A19: Cover Worksheet - Instructions
A20: 1. Enter the filing period dates in rows 4 and 5.
A21: 2. Enter the account information requested in rows 7 through 18.
A22: 3. If the return is a "no activity" return, enter "1" on row 21 and follow the "no activity" reporting instructions on this worksheet. No additional information is reported in the Return Information section when reporting a "no activity" return.
A23: 4. Enter the taxable gallons for Diesel Fuel in the appropriate columns on row 23 (line 1). Diesel gallons at the current rate are reported in column B and Diesel gallons at prior rates are reported in columns C through F (One tax rate per column. Do not repeat Diesel tax rates.). See the "Diesel- Tax Computation" worksheet for details.
A24: 5. Enter the tax rate for each taxable gallon amount reported on row 23 (line 1) in the appropriate columns on row 24 (line 2). Proper rate format is .nnn (e.g. .360).
A25: 6. Enter the amount due or refund claimed at each tax rate in the appropriate columns on row 25 (line 3). (Multiply the amount reported on row 23 [line 1] by the rate reported on row 24 [line 2].)
A26: 7. The total gallons reported in all columns on row 23 (line 1) are reported on row 26 (line 4). The workbook will make this calculation for you.
A27: 8. The total amount due or refund claimed as reported in all columns on row 25 (line 3) are reported on row 28 (line 6.). The workbook will make this calculation for you.
A28: 9. Enter excess tax collected in row 27 (line 5). The amount is added to row 28 (line 6). Enter a positive whole number.
A29: 10. Enter any penalty or interest amounts due in rows 29 and 30 (lines 7 and 8).
A30: 11. The total amount due or refund claimed is reported in row 31 (line 9). (The sum of the amounts in rows 28, 29, and 30 [lines 6, 7, and 8].) The workbook will make this calculation for you.
A31: 12. Enter data in rows 34 through 42 only if an electronic funds transfer (EFT) payment is included in this electronic filing. See "ePay Instructions" below for complete reporting instructions.
A32: 13. Enter the eFiling information requested in rows 44 through 47.
A33: 14. Enter the contact information requested in rows 49 through 64.
A34: ePay Instructions
A35: If making an ePayment, all fields must be completed; otherwise, all fields must be left empty.
A36: 1. Enter the payment warehouse date in row 34. This is the date the payment is to be made to the CDTFA. For example, you can submit the return on the 15th and warehouse the payment until the last day of the month. The payment date can not be after the due date of the return. For late returns, the payment date must be the next banking day.
A37: 2. Enter the dollar amount to be paid by EFT in row 35. Payment amounts must be made in whole dollars.
A38: 3. Enter the bank routing number in row 36.
A39: 4. Enter bank account number qualifier (“DBTCHK” – Business checking; “DBTSAV” – Business savings; “DBTCCK” – Personal checking; “DBTCSV” – Personal savings) in row 37.
A40: 5. Enter the bank account number in row 38.
A41: 6. Enter the name of the person to contact if there are issues with the payment in row 39.
A42: 7. Enter the area code for the contact person's phone number in row 40. Use numbers only: "222" not "(222)"
A43: 8. Enter the contact person's phone number in row 41. Use numbers only: "2223333" not "222-3333"
A44: 9. Enter the contact person's phone number extension, if applicable, in row 42. Use numbers only: "222" not "x222"
A45: Click here to return to Cover worksheet
A46: Schedule Worksheet
A47: 1. Transactions do not need to be grouped by schedule number or be in numeric order.
A48: 2. Dates must be entered using a proper date format. Proper date formats are MMMM DD, YYYY (i.e., August 13, 2019) or MM/DD/YY (i.e. 08/13/19 or 8/13/19).
A49: 3. All gallon and dollar amounts must be entered as whole numbers. Do not use decimals. Round to the nearest gallon or dollar amount.
A50: 4. CDTFA account numbers must be entered using the nine-digit numeric portion, no dashes or letters (e.g. 023456789). Eight-digit account numbers require a leading zero (e.g. 012345678).
A51: 5. Federal Employer Identification Numbers (FEINs) and Social Security Numbers (SSNs) are to be entered using nine digits without dashes and letters.
A52: 6. Two-digit identification (ID) type codes are required to identify ID numbers: Use 24 for FEIN, 34 for SSN, or 49 for account number.
A53: 7. No Activity Reports. When submitting a "No Activity Report," make sure that no transactions are reported on the Schedule worksheet.
A54: Excel 2016 Security Settings
A55: If the "Save As" pop-up box does not appear when you click on the "Create Flat File" button, your security settings may be set too high to allow the associated program to function. To change the security setting, follow these steps:
A56: 1. Save the Excel workbook containing your tax information.
A57: 2. Close all open Excel workbooks.
A58: 3. Click on the File tab.
A59: 4. Click on the Excel Options button at the bottom of the pop-up window.
A60: 5. Select Trust Center from the left column options of the Excel Options pop up window.
A61: 6. Click on the Trust Center Settings button in the primary window.
A62: 7. Select Macro Settings from the left column options of the Trust Center pop up window.
A63: 8. Choose Enable All Macros from the Macro Settings option list.
A64: 9. OK the change in the Trust Center pop up window.
A65: 10. OK the change in the Excel Options pop up window.
A66: 11. Open your Excel workbook and repeat Step 7 on the 'Instructions' worksheet.
A67: 12. Once you have successfully created a Flat File, it is highly recommended that you change your security settings back to a higher level.
A68: Click here to return to Instructions worksheet
A69: Mode Codes
A70: B Barge
A71: CE Summary Information
A72: GS Gas Station
A73: J Truck
A74: PL Pipeline
A75: R Rail
A76: *RT Removal from Terminal
A77: S Ship (ocean marine vessel)
A78: *RT - Removal from Terminal (other than by truck or rail) for sale or consumption.
A79: A supplier should use this mode code when: a sale or transfer is made within the bulk transfer/terminal system to an unlicensed customer; the sale is to a licensed industrial user and a removal is made from a vessel or pipeline; the removal is made from a vessel and the fuel will be consumed in the operation of the vessel; the disbursement is from a hydrant system at an airport; or when the disbursement is from qualifying truck removals at a secured airport.
A80: Click here to return to Instructions worksheet
A81: Diesel - General Information
A82: Suppliers of diesel fuel will use this tax return to remit the Diesel Fuel Tax on (undyed) diesel fuel, which includes biodiesel. The Diesel Fuel Tax is imposed on the following activities: removal of diesel fuel from a refinery or terminal rack; importation of diesel fuel outside the bulk transfer/terminal system; removal or sale of diesel fuel to an unlicensed person unless there was a prior taxable removal, entry, or sale; and removal or sale of blended diesel fuel outside the bulk transfer/terminal system. All transactions involving these activities are subject to tax unless the transaction meets one of the exemptions provided in the Diesel Fuel Tax Law. Dyed diesel fuel is not subject to tax unless it is used to operate a motor vehicle on a highway; however, it is subject to all of the reporting requirements applicable to undyed diesel fuel.
A83: Diesel - Filing Requirements
A84: You must file a tax return with the CDTFA reporting such activities as importing and exporting above and below the terminal rack, blending, and refinery or terminal rack removals of diesel fuel in this state on a monthly basis. You are also required to report aircraft jet fuel and kerosene imported, exported, and sold during the reporting period. The return and the remittance payable to the CDTFA for the amount due must be filed on or before the last day of the calendar month following the reporting period to which it relates. Paying your tax or filing your return after the due date may result in interest and penalty charges. You must file a return even if no tax is due for the reporting period.
A85: Accountability
A86: It is important that you report all transactions required by this return and supporting schedules. The CDTFA will be comparing your total rack removals, as reported by you, against removals reported by terminals. Your reports of products you import will be compared to exports reported to the CDTFA by other states. Failure to report fully may result in the CDTFA contacting you to determine why your reports differ from reports submitted by third parties, such as the terminal operators.
A87: Document Numbers
A88: The document number used on Receipt schedules must be the same document number provided on the bill of lading. The document number used on Disbursement schedules must be the same document number shown on the bill of lading provided by the terminal from which the product is being removed.
A89: Two-Party Exchange Transactions
A90: Suppliers may report two-party exchange transactions occurring on or after January 1, 2007. Suppliers will use either Schedule 6X or Schedule 2X and the appropriate disbursement schedule to report their part in a two-party exchange. Two-party exchange reporting must meet the following requirements:
A91: * All parties must file electronically (including terminal operator).
A92: * The two-party exchange is the subject of a written contract between the delivering supplier and the receiving supplier.
A93: * The receiving supplier must report the two-party exchange and remit any tax due on a timely-filed tax return.
A94: * Receiving supplier, delivering supplier, and terminal operator must all use the same bill of lading number to report the transaction.
A95: * Receiving supplier, delivering supplier, and terminal operator must all use the same fuel type to report the transaction.
A96: * Delivering supplier must report the two-party exchange to the terminal operator and identify the receiving supplier.
A97: * Delivering supplier must report the tax-free delivery to the receiving supplier on Schedule 6X.
A98: * Receiving supplier must report the tax-free receipt of fuel from the delivering supplier on Schedule 2X.
A99: * Receiving supplier must report the rack removal of the fuel.
A100: * Two-party exchange transactions must be reported timely.
A101: * Receiving supplier and delivering supplier must be registered as suppliers.
A102: CERTIFICATION
A103: Filers submitting their tax form electronically hereby consent to disclose and authorize the CDTFA to release, as necessary, certain otherwise confidential transaction information regarding volumes, invoice numbers, bills-of-lading, locations, dates, or method of delivery of reportable products to any person identified by you in this return as being involved in a reported transaction for the sole purpose of verifying the accuracy of the reportable product transaction information concerning your transactions with such person as reported in this return.
A104: End of Worksheet

Sheet Instructions
A1: Instructions For:
A2: SUPPLIER OF DIESEL FUEL TAX RETURN
A3: 1. Enter all transaction information for summary schedule codes and transaction schedule codes on the Schedule worksheet. Note: All summary schedule code transactions must be entered before any other schedule code transactions are entered. All gallon amounts must be entered as whole gallons. Do not use decimals. Round to the nearest whole gallon.
A4: For schedule descriptions and instructions on completing schedules:
A5: Click here for schedule descriptions and instructions on completing schedules
A6: For product codes:
A7: Click here for Product Code List
A8: For mode codes:
A9: Click here for a list of valid transportation mode codes
A10: 2. Prepare the Tax Computation Worksheet. The Tax Computation Worksheet will assist you in calculating the tax due and completing your return.
A11: Click here to go to Diesel-Tax Computation worksheet
A12: 3. Enter all information requested on the Cover worksheet. Detailed instructions are provided in the General Information worksheet. Note: All gallon and dollar amounts must be entered as whole numbers. Do not use decimals. Round to the nearest whole number. A tax computation worksheet is available to assist you.
A13: Click here to go to Diesel-Tax Computation worksheet
A14: 4. Save the Excel workbook and the data input for this tax form for your records. Do so by selecting "File, Save As" from the menu and then identifying the file name and location.
A15: 5. Create a FLT File by clicking on the button below. You will be required to identify a file name and location for your flat file. Note: If the program does not execute and display a "Save As" pop-up box or opens the "Microsoft Visual Basic" macro editor, your security setting may be set too high.
A16: Click here for instructions on changing the security setting
A17: Press Enter to create FLT file
A18: 6. Log-in to Online Services and upload the FLT File you created. Note: The FLT File has a ".txt" extension, not ".xlsm."
A19: Click here to go to the log-in webpage
A20: End of Worksheet

Sheet Schedule
A1: Schedule Code | B1: Product Code | C1: Carrier Name | D1: Carrier ID | E1: Carrier ID Type (24, 34, or 49) | F1: Mode | G1: Point of Origin | H1: Destination | I1: Buyer/Seller Name | J1: Buyer/Seller ID | K1: Buyer/Seller ID Type (24, 34, or 49) | L1: Document Date (MM/DD/YY) | M1: Document Number | N1: Net Gallons | O1: Gross Gallons | P1: Billed Gallons | Q1: Tax Rate (.nnn) | R1: Import/Purchase Date (MM/DD/YY)
A2: 1A | B2: 160 | C2: JJ Trucking | D2: 456789123 | E2: 24 | F2: J | G2: T12CA3456 | H2: T33CA8765 | I2: RG Oil Co | J2: 988556555 | K2: 24 | L2: 2018-08-02 | M2: 14560 | N2: 10000 | O2: 10000 | P2: 10000
A3: 1A | B3: 284 | C3: JJ Trucking | D3: 456789123 | E3: 24 | F3: J | G3: T12CA3456 | H3: T33CA8765 | I3: RG Oil Co | J3: 988556555 | K3: 24 | L3: 2018-08-06 | M3: 46801 | N3: 10000 | O3: 10000 | P3: 10000
A4: 2X | B4: 167 | C4: JJ Trucking | D4: 456789123 | E4: 24 | F4: J | G4: T12CA3456 | H4: CA | I4: ABC Oil | J4: 111222333 | K4: 24 | L4: 2018-08-04 | M4: 777777 | N4: 8000 | O4: 8001 | P4: 8000
A5: 2X | B5: 167 | C5: JJ Trucking | D5: 456789123 | E5: 24 | F5: J | G5: T12CA3456 | H5: CA | I5: ABC Oil | J5: 111222333 | K5: 24 | L5: 2018-08-09 | M5: 888888 | N5: 7000 | O5: 7001 | P5: 7000
A6: 3A | B6: 167 | C6: SS Ships | D6: 987654321 | E6: 24 | F6: S | G6: AK | H6: CA | I6: XYZ Fuels | J6: 333222111 | K6: 24 | L6: 2018-08-14 | M6: 5127 | N6: 12000 | O6: 12500 | P6: 12000
A7: 3A | B7: 167 | C7: SS Ships | D7: 987654321 | E7: 24 | F7: S | G7: AK | H7: CA | I7: XYZ Fuels | J7: 333222111 | K7: 24 | L7: 2018-08-15 | M7: 5128 | N7: 12500 | O7: 12750 | P7: 12500
A8: 3X | B8: 167 | C8: JJ Trucking | D8: 456789123 | E8: 24 | F8: J | G8: NV | H8: CA | I8: XYZ Fuels | J8: 333222111 | K8: 24 | L8: 2018-08-15 | M8: 9134 | N8: 7780 | O8: 7750 | P8: 7780 | Q8: .360 | R8: 2018-08-15
A9: 3X | B9: 167 | C9: JJ Trucking | D9: 456789123 | E9: 24 | F9: J | G9: NV | H9: CA | I9: XYZ Fuels | J9: 333222111 | K9: 24 | L9: 2018-08-25 | M9: 9135 | N9: 7500 | O9: 7450 | P9: 7500 | Q9: .360 | R9: 2018-08-25
A10: 3X | B10: 167 | C10: EK Trucking | D10: 556789123 | E10: 24 | F10: J | G10: AZ | H10: CA | I10: JKL Gas | J10: 777444111 | K10: 24 | L10: 2017-06-17 | M10: 22344 | N10: 2310 | O10: 2300 | P10: 2310 | Q10: .160 | R10: 2017-06-17
A11: 3X | B11: 167 | C11: EK Trucking | D11: 556789123 | E11: 24 | F11: J | G11: AZ | H11: CA | I11: JKL Gas | J11: 777444111 | K11: 24 | L11: 2017-06-28 | M11: 22345 | N11: 1500 | O11: 1450 | P11: 1500 | Q11: .160 | R11: 2017-06-28
A12: 3Y | B12: 227 | C12: JJ Trucking | D12: 456789123 | E12: 24 | F12: J | G12: NV | H12: CA | I12: XYZ Fuels | J12: 333222111 | K12: 24 | L12: 2018-08-15 | M12: 87654 | N12: 500 | O12: 500 | P12: 500
A13: 3Y | B13: 227 | C13: JJ Trucking | D13: 456789123 | E13: 24 | F13: J | G13: NV | H13: CA | I13: XYZ Fuels | J13: 333222111 | K13: 24 | L13: 2018-08-24 | M13: 87656 | N13: 450 | O13: 450 | P13: 450
A14: 5 | B14: 167 | C14: JJ Trucking | D14: 456789123 | E14: 24 | F14: J | G14: T33CA8765 | H14: CA | I14: ABC Oil | J14: 111222333 | K14: 24 | L14: 2018-08-02 | M14: 12305 | N14: 7610 | O14: 7600 | P14: 7610 | Q14: .360 | R14: 2018-08-02
A15: 5 | B15: 167 | C15: JJ Trucking | D15: 456789123 | E15: 24 | F15: J | G15: T33CA8765 | H15: CA | I15: ABC Oil | J15: 111222333 | K15: 24 | L15: 2018-08-09 | M15: 12394 | N15: 7750 | O15: 7740 | P15: 7750 | Q15: .360 | R15: 2018-08-09
A16: 5 | B16: 167 | C16: JJ Trucking | D16: 456789123 | E16: 24 | F16: J | G16: T33CA8765 | H16: CA | I16: ABC Oil | J16: 111222333 | K16: 24 | L16: 2018-08-15 | M16: 12476 | N16: 7801 | O16: 7800 | P16: 7801 | Q16: .360 | R16: 2018-08-15
A17: 5 | B17: 167 | C17: JJ Trucking | D17: 456789123 | E17: 24 | F17: J | G17: T12CA3456 | H17: CA | I17: ABC Oil | J17: 111222333 | K17: 24 | L17: 2018-08-04 | M17: 777777 | N17: 8000 | O17: 8001 | P17: 8000 | Q17: .360 | R17: 2018-08-04
A18: 5 | B18: 167 | C18: JJ Trucking | D18: 456789123 | E18: 24 | F18: J | G18: T12CA3456 | H18: CA | I18: ABC Oil | J18: 111222333 | K18: 24 | L18: 2018-08-09 | M18: 888888 | N18: 7000 | O18: 7001 | P18: 7000 | Q18: .360 | R18: 2018-08-09
A19: 5 | B19: 167 | C19: JJ Trucking | D19: 456789123 | E19: 24 | F19: J | G19: T33CA8765 | H19: CA | I19: RG Oil Co | J19: 988556555 | K19: 24 | L19: 2017-06-30 | M19: 12288 | N19: 7600 | O19: 7590 | P19: 7600 | Q19: .160 | R19: 2017-06-30
A20: 5 | B20: 167 | C20: JJ Trucking | D20: 456789123 | E20: 24 | F20: J | G20: T33CA8765 | H20: CA | I20: RG Oil Co | J20: 988556555 | K20: 24 | L20: 2017-06-30 | M20: 12289 | N20: 5700 | O20: 5690 | P20: 5700 | Q20: .160 | R20: 2017-06-30
A21: 5A | B21: 167 | C21: Pipeline A Co | D21: 987654321 | E21: 24 | F21: PL | G21: CA | H21: CA | I21: JKL Gas | J21: 777444111 | K21: 24 | L21: 2018-08-15 | M21: 71971 | N21: 28730 | O21: 28730 | P21: 28730 | Q21: .360 | R21: 2018-08-15
A22: 5A | B22: 167 | C22: Pipeline A Co | D22: 987654321 | E22: 24 | F22: PL | G22: CA | H22: CA | I22: JKL Gas | J22: 777444111 | K22: 24 | L22: 2018-08-31 | M22: 71973 | N22: 29800 | O22: 29800 | P22: 29800 | Q22: .360 | R22: 2018-08-31
A23: 5Q | B23: 167 | F23: CE | G23: CA | H23: CA | I23: Alpha Oil Company | J23: 257426452 | L23: 2018-08-15 | M23: 1047 | N23: 500 | O23: 500 | P23: 500 | Q23: .360 | R23: 2018-08-15
A24: 5Q | B24: 167 | F24: CE | G24: CA | H24: CA | I24: Alpha Oil Company | J24: 257426452 | L24: 2018-08-31 | M24: 1048 | N24: 400 | O24: 400 | P24: 400 | Q24: .360 | R24: 2018-08-31
A25: 5W | B25: 284 | C25: JJ Trucking | D25: 456789123 | E25: 24 | F25: J | G25: CA | H25: CA | I25: XYZ Fuels | J25: 333222111 | K25: 24 | L25: 2018-08-20 | M25: 1050 | N25: 280 | O25: 280 | P25: 280 | Q25: .360 | R25: 2018-08-20
A26: 5W | B26: 284 | C26: JJ Trucking | D26: 456789123 | E26: 24 | F26: J | G26: CA | H26: CA | I26: XYZ Fuels | J26: 333222111 | K26: 24 | L26: 2018-08-25 | M26: 1051 | N26: 300 | O26: 300 | P26: 300 | Q26: .360 | R26: 2018-08-25
A27: 5W | B27: 284 | F27: GS | L27: 2018-08-10 | M27: 950 | N27: 10 | O27: 10 | P27: 10 | Q27: .360 | R27: 2018-08-10
A28: 5W | B28: 284 | F28: GS | L28: 2018-08-12 | M28: 622 | N28: 15 | O28: 15 | P28: 15 | Q28: .360 | R28: 2018-08-12
A29: 5X | B29: 167 | C29: JJ Trucking | D29: 456789123 | E29: 24 | F29: J | G29: CA | H29: CA | I29: XYZ Fuels | J29: 333222111 | K29: 24 | L29: 2018-08-20 | M29: 780 | N29: 30 | O29: 30 | P29: 30 | Q29: .360 | R29: 2018-08-20
A30: 5X | B30: 167 | C30: JJ Trucking | D30: 456789123 | E30: 24 | F30: J | G30: CA | H30: CA | I30: XYZ Fuels | J30: 333222111 | K30: 24 | L30: 2018-08-25 | M30: 781 | N30: 20 | O30: 20 | P30: 20 | Q30: .360 | R30: 2018-08-25
A31: 6F | B31: 130 | C31: JJ Trucking | D31: 456789123 | E31: 24 | F31: J | G31: T94CA9876 | H31: CA | I31: ABC Jet Co | J31: 984521111 | K31: 24 | L31: 2018-08-01 | M31: 11215 | N31: 7501 | O31: 7500 | P31: 7501
A32: 6F | B32: 130 | C32: JJ Trucking | D32: 456789123 | E32: 24 | F32: J | G32: T94CA9876 | H32: CA | I32: ABC Jet Co | J32: 984521111 | K32: 24 | L32: 2018-08-04 | M32: 11300 | N32: 7709 | O32: 7700 | P32: 7709
A33: 6X | B33: 161 | C33: EK Trucking | D33: 556789123 | E33: 24 | F33: J | G33: T12CA3456 | H33: CA | I33: XYZ Oil | J33: 999888777 | K33: 24 | L33: 2018-08-24 | M33: 666 | N33: 5000 | O33: 5001 | P33: 5000
A34: 6X | B34: 161 | C34: EK Trucking | D34: 556789123 | E34: 24 | F34: J | G34: T12CA3456 | H34: CA | I34: XYZ Oil | J34: 999888777 | K34: 24 | L34: 2018-08-29 | M34: 555 | N34: 4000 | O34: 4001 | P34: 4000
A35: 7 | B35: 167 | C35: JJ Trucking | D35: 456789123 | E35: 24 | F35: J | G35: T33CA8765 | H35: OR | I35: Bob's Trucking | J35: 933332222 | K35: 24 | L35: 2018-08-02 | M35: 12306 | N35: 7595 | O35: 7600 | P35: 7595
A36: 7 | B36: 167 | C36: JJ Trucking | D36: 456789123 | E36: 24 | F36: J | G36: T33CA8765 | H36: OR | I36: Bob's Trucking | J36: 933332222 | K36: 24 | L36: 2018-08-09 | M36: 12396 | N36: 7680 | O36: 7670 | P36: 7680
A37: 7D | B37: 073 | C37: Pipeline A Co | D37: 987654321 | E37: 24 | F37: PL | G37: T94CA9876 | H37: T88NV7776 | I37: RG Oil Co | J37: 988556555 | K37: 24 | L37: 2018-08-01 | M37: 1230167 | N37: 601000 | O37: 600000 | P37: 601000
A38: 7D | B38: 073 | C38: Pipeline A Co | D38: 987654321 | E38: 24 | F38: PL | G38: T94CA9876 | H38: T88NV7776 | I38: RG Oil Co | J38: 988556555 | K38: 24 | L38: 2018-08-16 | M38: 1230168 | N38: 299000 | O38: 298000 | P38: 299000
A39: 7D | B39: 130 | C39: Pipeline A Co | D39: 987654321 | E39: 24 | F39: PL | G39: T94CA9876 | H39: T88NV7776 | I39: RG Oil Co | J39: 988556555 | K39: 24 | L39: 2018-08-10 | M39: 1241818 | N39: 61500 | O39: 62000 | P39: 61500
A40: 7D | B40: 130 | C40: Pipeline A Co | D40: 987654321 | E40: 24 | F40: PL | G40: T94CA9876 | H40: T88NV7776 | I40: RG Oil Co | J40: 988556555 | K40: 24 | L40: 2018-08-17 | M40: 1241820 | N40: 63500 | O40: 63000 | P40: 63500
A41: 7D | B41: 167 | C41: Pipeline A Co | D41: 987654321 | E41: 24 | F41: PL | G41: T94CA9876 | H41: T88NV7776 | I41: ABC Oil | J41: 111222333 | K41: 24 | L41: 2018-08-15 | M41: 1238765 | N41: 200000 | O41: 205000 | P41: 200000
A42: 7D | B42: 167 | C42: Pipeline A Co | D42: 987654321 | E42: 24 | F42: PL | G42: T94CA9876 | H42: T88NV7776 | I42: ABC Oil | J42: 111222333 | K42: 24 | L42: 2018-08-25 | M42: 1238766 | N42: 300000 | O42: 305000 | P42: 300000
A43: 7F | B43: 073 | C43: JJ Trucking | D43: 456789123 | E43: 24 | F43: J | G43: CA | H43: OR | I43: RG Oil Co | J43: 988556555 | K43: 24 | L43: 2018-08-23 | M43: 140 | N43: 7300 | O43: 7350 | P43: 7300
A44: 7F | B44: 073 | C44: JJ Trucking | D44: 456789123 | E44: 24 | F44: J | G44: CA | H44: OR | I44: RG Oil Co | J44: 988556555 | K44: 24 | L44: 2018-08-27 | M44: 152 | N44: 7500 | O44: 7550 | P44: 7500
A45: 8 | B45: 167 | C45: EK Trucking | D45: 556789123 | E45: 24 | F45: J | G45: T33CA8765 | H45: CA | I45: US Govt Navy | J45: 254888887 | K45: 24 | L45: 2018-08-01 | M45: 12250 | N45: 7950 | O45: 7900 | P45: 7950
A46: 8 | B46: 167 | C46: EK Trucking | D46: 556789123 | E46: 24 | F46: J | G46: T33CA8765 | H46: CA | I46: US Govt Navy | J46: 254888887 | K46: 24 | L46: 2018-08-10 | M46: 12400 | N46: 7751 | O46: 7900 | P46: 7751
A47: 10C | B47: 167 | C47: E & B Trucking | D47: 567891234 | E47: 24 | F47: J | G47: T33CA8765 | H47: CA | I47: Thomas' Bus | J47: 572184812 | K47: 24 | L47: 2018-08-21 | M47: 24838 | N47: 750 | O47: 750 | P47: 750
A48: 10C | B48: 167 | C48: E & B Trucking | D48: 567891234 | E48: 24 | F48: J | G48: T33CA8765 | H48: CA | I48: Whitehound | J48: 214543873 | K48: 24 | L48: 2018-08-28 | M48: 2644 | N48: 900 | O48: 950 | P48: 900
A49: 10I | B49: 167 | C49: EK Trucking | D49: 556789123 | E49: 24 | F49: J | G49: T33CA8765 | H49: CA | I49: Steve Farming | J49: 987085555 | K49: 24 | L49: 2018-08-21 | M49: 12526 | N49: 7855 | O49: 7835 | P49: 7855
A50: 10I | B50: 167 | C50: EK Trucking | D50: 556789123 | E50: 24 | F50: J | G50: T33CA8765 | H50: CA | I50: Steve Farming | J50: 987085555 | K50: 24 | L50: 2018-08-29 | M50: 12589 | N50: 7501 | O50: 7500 | P50: 7501
A51: 10Y | B51: 167 | C51: EK Trucking | D51: 556789123 | E51: 24 | F51: J | G51: T33CA8765 | H51: CA | I51: RST Trains | J51: 888555222 | K51: 24 | L51: 2018-08-02 | M51: 87463 | N51: 7000 | O51: 7050 | P51: 7000
A52: 10Y | B52: 167 | C52: EK Trucking | D52: 556789123 | E52: 24 | F52: J | G52: T33CA8765 | H52: CA | I52: RST Trains | J52: 888555222 | K52: 24 | L52: 2018-08-08 | M52: 87464 | N52: 8000 | O52: 8040 | P52: 8000
A53: 12A | B53: 167 | F53: CE | G53: CA | H53: CA | L53: 2018-08-31 | M53: SMCU08 | N53: 60000 | O53: 60000 | P53: 60000 | Q53: .360
A54: 12A | B54: 167 | F54: CE | G54: CA | H54: CA | L54: 2018-08-31 | M54: SMPR08 | N54: 45000 | O54: 45000 | P54: 45000 | Q54: .160
A55: 12B | B55: 227 | F55: CE | G55: CA | H55: CA | L55: 2018-08-31 | M55: SLE0811 | N55: 50000 | O55: 50000 | P55: 50000
A56: 12B | B56: 227 | F56: CE | G56: CA | H56: CA | L56: 2018-08-31 | M56: USE0811 | N56: 10000 | O56: 10000 | P56: 10000
A57: 12C | B57: 167 | F57: CE | L57: 2018-08-31 | M57: INV0811 | N57: 308106 | Q57: .360
A58: 12C | B58: 167 | F58: CE | L58: 2018-08-31 | M58: INV0811 | N58: 15600 | Q58: .160
A59: 13A | B59: 167 | C59: JJ Trucking | D59: 456789123 | E59: 24 | F59: J | G59: CA | H59: OR | I59: ABC Oil | J59: 111222333 | K59: 24 | L59: 2018-08-02 | M59: 1 | N59: 7605 | O59: 7600 | P59: 7605
A60: 13A | B60: 167 | C60: JJ Trucking | D60: 456789123 | E60: 24 | F60: J | G60: CA | H60: OR | I60: ABC Oil | J60: 111222333 | K60: 24 | L60: 2018-08-09 | M60: 2 | N60: 7000 | O60: 7000 | P60: 7000
A61: 13A | B61: 167 | C61: JJ Trucking | D61: 456789123 | E61: 24 | F61: J | G61: CA | H61: OR | I61: ABC Oil | J61: 111222333 | K61: 24 | L61: 2017-06-12 | M61: 10 | N61: 605 | O61: 600 | P61: 605 | Q61: .160
A62: 13B | B62: 167 | C62: JJ Trucking | D62: 456789123 | E62: 24 | F62: J | G62: CA | H62: CA | I62: Consulate Officer | J62: 933335555 | K62: 24 | L62: 2018-08-20 | M62: 1120 | N62: 7000 | O62: 7000 | P62: 7000
A63: 13B | B63: 167 | C63: JJ Trucking | D63: 456789123 | E63: 24 | F63: J | G63: CA | H63: CA | I63: Consulate Officer | J63: 933335555 | K63: 24 | L63: 2018-08-31 | M63: 1126 | N63: 8000 | O63: 8000 | P63: 8000
A64: 13B | B64: 167 | C64: JJ Trucking | D64: 456789123 | E64: 24 | F64: J | G64: CA | H64: CA | I64: Consulate Officer | J64: 933335555 | K64: 24 | L64: 2018-08-02 | M64: 120 | N64: 700 | O64: 700 | P64: 700 | Q64: .160
A65: 13C | B65: 167 | C65: JJ Trucking | D65: 456789123 | E65: 24 | F65: J | G65: CA | H65: CA | I65: US Govt Navy | J65: 254888887 | K65: 24 | L65: 2018-08-17 | M65: 1330 | N65: 7500 | O65: 7450 | P65: 7500
A66: 13C | B66: 167 | C66: JJ Trucking | D66: 456789123 | E66: 24 | F66: J | G66: CA | H66: CA | I66: US Govt Navy | J66: 254888887 | K66: 24 | L66: 2018-08-22 | M66: 1440 | N66: 7700 | O66: 7650 | P66: 7700
A67: 13C | B67: 167 | C67: JJ Trucking | D67: 456789123 | E67: 24 | F67: J | G67: CA | H67: CA | I67: US Govt Navy | J67: 254888887 | K67: 24 | L67: 2018-08-07 | M67: 130 | N67: 500 | O67: 450 | P67: 500 | Q67: .160
A68: 13D | B68: 167 | C68: JJ Trucking | D68: 456789123 | E68: 24 | F68: J | G68: CA | H68: CA | I68: Steve Farming | J68: 987085555 | K68: 24 | L68: 2018-08-27 | M68: 0622 | N68: 500 | O68: 500 | P68: 500
A69: 13D | B69: 167 | C69: JJ Trucking | D69: 456789123 | E69: 24 | F69: J | G69: CA | H69: CA | I69: Steve Farming | J69: 987085555 | K69: 24 | L69: 2018-08-30 | M69: 0625 | N69: 60 | O69: 60 | P69: 60
A70: 13D | B70: 167 | C70: JJ Trucking | D70: 456789123 | E70: 24 | F70: J | G70: CA | H70: CA | I70: Steve Farming | J70: 987085555 | K70: 24 | L70: 2018-08-02 | M70: 62 | N70: 50 | O70: 50 | P70: 50 | Q70: .160
A71: 13E | B71: 167 | C71: JJ Trucking | D71: 456789123 | E71: 24 | F71: J | G71: CA | H71: CA | I71: SJ City Bus Line | J71: 870111115 | K71: 24 | L71: 2018-08-31 | M71: 0623 | N71: 1500 | O71: 1500 | P71: 1500
A72: 13E | B72: 167 | C72: JJ Trucking | D72: 456789123 | E72: 24 | F72: J | G72: CA | H72: CA | I72: SJ City Bus Line | J72: 870111115 | K72: 24 | L72: 2018-08-05 | M72: 0624 | N72: 50 | O72: 50 | P72: 50
A73: 13E | B73: 167 | C73: JJ Trucking | D73: 456789123 | E73: 24 | F73: J | G73: CA | H73: CA | I73: SJ City Bus Line | J73: 870111115 | K73: 24 | L73: 2018-08-03 | M73: 23 | N73: 500 | O73: 500 | P73: 500 | Q73: .160
A74: 13G | B74: 167 | C74: JJ Trucking | D74: 456789123 | E74: 24 | F74: J | G74: CA | H74: CA | I74: RST Trains | J74: 888555222 | K74: 24 | L74: 2018-08-03 | M74: 133 | N74: 7600 | O74: 7600 | P74: 7600
A75: 13G | B75: 167 | C75: JJ Trucking | D75: 456789123 | E75: 24 | F75: J | G75: CA | H75: CA | I75: RST Trains | J75: 888555222 | K75: 24 | L75: 2018-08-23 | M75: 149 | N75: 7085 | O75: 7080 | P75: 7085
A76: 13G | B76: 167 | C76: JJ Trucking | D76: 456789123 | E76: 24 | F76: J | G76: CA | H76: CA | I76: RST Trains | J76: 888555222 | K76: 24 | L76: 2018-08-13 | M76: 13 | N76: 600 | O76: 600 | P76: 600 | Q76: .160
A77: 13J | B77: 167 | F77: CE | G77: CA | H77: CA | L77: 2018-08-31 | M77: SOCAL1 | N77: 3300 | O77: 3300 | P77: 3300
A78: 13J | B78: 167 | F78: CE | G78: CA | H78: CA | L78: 2018-08-31 | M78: NORCAL | N78: 3800 | O78: 3800 | P78: 3800
A79: 13J | B79: 167 | F79: CE | G79: CA | H79: CA | L79: 2018-08-03 | M79: SOCAL2 | N79: 300 | O79: 330 | P79: 300 | Q79: .160
A80: 13M | B80: 167 | C80: JJ Trucking | D80: 456789123 | E80: 24 | F80: J | G80: T33CA8765 | H80: CA | I80: ABC Oil | J80: 111222333 | K80: 24 | L80: 2018-08-02 | M80: 12305 | N80: 7610 | O80: 7600 | P80: 7610
A81: 13M | B81: 167 | C81: JJ Trucking | D81: 456789123 | E81: 24 | F81: J | G81: T33CA8765 | H81: CA | I81: ABC Oil | J81: 111222333 | K81: 24 | L81: 2018-08-09 | M81: 12394 | N81: 7750 | O81: 7740 | P81: 7750
A82: 13M | B82: 167 | C82: JJ Trucking | D82: 456789123 | E82: 24 | F82: J | G82: T33CA8765 | H82: CA | I82: ABC Oil | J82: 111222333 | K82: 24 | L82: 2018-08-12 | M82: 305 | N82: 610 | O82: 600 | P82: 610 | Q82: .160
A83: 13N | B83: 167 | C83: JJ Trucking | D83: 456789123 | E83: 24 | F83: J | G83: T33CA8765 | H83: CA | I83: RG Oil Co | J83: 988556555 | K83: 24 | L83: 2018-08-18 | M83: 81811 | N83: 3200 | O83: 3205 | P83: 3200
A84: 13N | B84: 167 | C84: JJ Trucking | D84: 456789123 | E84: 24 | F84: J | G84: T33CA8765 | H84: CA | I84: RG Oil Co | J84: 988556555 | K84: 24 | L84: 2018-08-31 | M84: 83111 | N84: 4900 | O84: 4905 | P84: 4900
A85: 13N | B85: 167 | C85: JJ Trucking | D85: 456789123 | E85: 24 | F85: J | G85: T33CA8765 | H85: CA | I85: RG Oil Co | J85: 988556555 | K85: 24 | L85: 2018-08-08 | M85: 81 | N85: 200 | O85: 205 | P85: 200 | Q85: .160

Sheet Cover
A1: SUPPLIER OF DIESEL FUEL TAX RETURN
A2: intentionally left blank
A3: Filing Period: | B3: Date
A4: Period Beginning Date (Format of entry must be "May 1, 2019" or "5/1/19") | B4: 2018-08-01
A5: Period Ending Date (Format of entry must be "May 31, 2019" or "5/31/19") | B5: 2018-08-31
A6: Account Information: | B6: Info
A7: CDTFA Account Number (Enter 9 numeric digits of account number . e.g. "057250000" ) | B7: 057333333
A8: Taxpayer's ID Qualifier (Enter "24" if providing FEIN or "34" if SSN) | B8: 24
A9: Taxpayer's FEIN or SSN | B9: 765432198
A10: Name (Enter legal name on CDTFA application) | B10: Alpha Oil Company
A11: DBA
A12: DBA (If needed)
A13: Address Line 1 (Enter street address) | B13: PO Box 123
A14: Address Line 2 (Use if needed)
A15: City | B15: Sacramento
A16: State (Use abbreviation "CA," "NV," etc.) | B16: CA
A17: ZIP | B17: 95814
A18: ZIP +4 (Use if needed)
A19: Return Information: | B19: Diesel Current Rate | C19: Diesel Alternate Rate #1 | D19: Diesel Alternate Rate #2 | E19: Diesel Alternate Rate #3 | F19: Diesel Alternate Rate #4 | G19: CDTFA USE ONLY
A20: Click here to go to Diesel-Tax Computation worksheet | B20: intentionally left blank | C20: intentionally left blank | D20: intentionally left blank | E20: intentionally left blank | F20: intentionally left blank
A21: No Activity To Report (Enter 1 if no activity. Otherwise, leave blank). | C21: intentionally left blank | D21: intentionally left blank | E21: intentionally left blank | F21: intentionally left blank
A22: Click here for complete No Activity instructions. | B22: intentionally left blank | C22: intentionally left blank | D22: intentionally left blank | E22: intentionally left blank | F22: intentionally left blank | G22: Line Item | H22: UOM | I22: Qualifier
A23: 1. Gallons for which tax applies or refund due (Enter from Tax Computation Worksheet Section C, line 3) | B23: 21366 | C23: 13045 | G23: L00031 | H23: GA | I23: Billed
A24: 2. Tax rate (Note: Tax rate is reported with a decimal point and three digits. e.g. ".100" or ".130") | B24: .360 | C24: .160 | H24: USD | I24: Rate
A25: 3. Amount of tax due or refund claimed (Multiply line 1 by line 2) | B25: =ROUND((B23*B24),0) -> 7692 | C25: =ROUND((C23*C24),0) -> 2087 | D25: 0 | E25: 0 | F25: 0 | G25: L00031 | H25: USD | I25: Tax
A26: 4. Total gallons for which tax applies or refund due (Add line 1, columns B, C, D, E, and F) | B26: =ROUND(SUM(B23:F23),0) -> 34411 | C26: intentionally left blank | D26: intentionally left blank | E26: intentionally left blank | F26: intentionally left blank | G26: L00001 | H26: GA | I26: Billed
A27: 5. Excess tax collected | C27: intentionally left blank | D27: intentionally left blank | E27: intentionally left blank | F27: intentionally left blank | G27: L00032 | H27: USD | I27: Tax
A28: 6. Total amount of tax due or refund claimed (Add line 3, columns B, C, D, E, and F and line 5, column B) | B28: =ROUND(SUM(B25:F25),0)+B27 -> 9779 | C28: intentionally left blank | D28: intentionally left blank | E28: intentionally left blank | F28: intentionally left blank | G28: L00002 | H28: USD | I28: Tax
A29: 7. Penalty | C29: intentionally left blank | D29: intentionally left blank | E29: intentionally left blank | F29: intentionally left blank | G29: L00003 | H29: USD | I29: Pen
A30: 8. Interest | C30: intentionally left blank | D30: intentionally left blank | E30: intentionally left blank | F30: intentionally left blank | G30: L00004 | H30: USD | I30: Int
A31: 9. Total amount due and payable or refund claimed (add lines 6, 7, and 8) | B31: =ROUND(SUM(B28:B30),0) -> 9779 | C31: intentionally left blank | D31: intentionally left blank | E31: intentionally left blank | F31: intentionally left blank | G31: L00005 | H31: USD | I31: Total
A32: ePay Information: | B32: Info
A33: Click here for complete Motor Fuels ePay instructions. | B33: intentionally left blank
A34: ePay Payment Warehouse Date (Use date format "May 1, 2019" or "5/1/2019") | B34: 2018-09-30
A35: ePay Payment Amount (Use whole numbers only: "90000," not "90000.00") | B35: 9779
A36: ePay Routing Number | B36: 1110001111
A37: ePay Account Number Qualifier (“DBTCHK” – Business checking; “DBTSAV” – Business savings; “DBTCCK” – Personal checking; “DBTCSV” – Personal savings) | B37: DBTCHK
A38: ePay Account Number | B38: 1234
A39: ePay Contact Name | B39: Don D. Doe
A40: ePay Contact Area Code (Use numbers only: "916," not "(916)") | B40: 916
A41: ePay Contact Phone Number (Use numbers only: "2223333," not "222-3333") | B41: 2224444
A42: ePay Contact Phone Extension (Use numbers only: "222," not "x222")
A43: eFiling Information: | B43: Info
A44: Purpose Code ( “00” – Original; "Blank" – Resubmission or Supplemental) | B44: 00
A45: Purpose Transaction Type ( "Blank" – Original; “6R” – Resubmission; “6S” – Supplemental)
A46: Sender's FEIN (May be same as taxpayer) | B46: 765432198
A47: Production Filing (P to identify production filing.) | B47: P
A48: Contact Information: | B48: Info
A49: General Contact Name | B49: Dave Johnson
A50: General Contact Area Code (Use numbers only: "916," not "(916)") | B50: 916
A51: General Contact Phone Number (Use numbers only: "2223333," not "222-3333") | B51: 2223333
A52: General Contact Extension (Use numbers only) | B52: 1234
A53: General Contact Fax Area Code (Use numbers only: "916," not "(916)") | B53: 916
A54: General Contact Fax Phone Number (Use numbers only: "2223333," not "222-3333") | B54: 2223334
A55: General Contact Fax Extension (Use numbers only)
A56: General Contact Email Address | B56: djohnson@alphaoil.com
A57: eFiling Contact Name | B57: Don D. Doe
A58: eFiling Contact Area Code (Use numbers only: "916," not "(916)") | B58: 916
A59: eFiling Contact Phone Number (Use numbers only: "2223333," not "222-3333") | B59: 2224444
A60: eFiling Contact Extension (Use numbers only) | B60: 4321
A61: eFiling Contact Fax Area Code (Use numbers only: "916," not "(916)") | B61: 916
A62: eFiling Contact Fax Phone Number (Use numbers only: "2223333," not "222-3333") | B62: 2224445
A63: eFiling Contact Fax Extension (Use numbers only)
A64: eFiling Contact Email Address | B64: dddoe@alphaoil.com
A65: CDTFA USE ONLY:
A66: Report Type | B66: SDR
A67: CDTFA Software Version | B67: 4.0
A68: End of Worksheet

Sheet Diesel - Tax Computation
A1: DIESEL TAX COMPUTATION WORKSHEET
A2: Click here to return to Cover worksheet
A3: Click here to return to the Instructions worksheet
A4: This worksheet should be used to help you complete your return and calculate the tax due.
A5: SECTION A. TAXABLE TRANSACTIONS | B5: FROM SCHEDULE | C5: A ALL OTHER DIESEL AT CURRENT RATE | D5: B ALL OTHER DIESEL AT ALTERNATE RATE #1 | E5: C ALL OTHER DIESEL AT ALTERNATE RATE #2 | F5: D ALL OTHER DIESEL AT ALTERNATE RATE #3 | G5: E ALL OTHER DIESEL AT ALTERNATE RATE #4
A6: 1. Imports Below the Rack Subject to Tax (enter from Schedule 3X) | B6: 3X | C6: 15280 | D6: 3810
A7: 2. Fuel Removed Subject to Tax (enter from Schedule 5) | B7: 5 | C7: 38161 | D7: 13300
A8: 3. Fuel Sold Above the Rack to Unlicensed Parties (enter from Schedule 5A) | B8: 5A | C8: 58530
A9: 4. Gallons Used in a Taxable Manner (enter from Schedule 5Q) | B9: 5Q | C9: 900
A10: 5. Untaxed Products Blended with or Added to Fuel, Resulting in a Product Which Is Used as or Is Usable as, a Taxable Fuel (enter from Schedule 5W) | B10: 5W | C10: 605
A11: 6. Gallons Delivered Partially Taxed (enter from Schedule 5X) | B11: 5X | C11: 50
A12: 7. Miscellaneous Fuel Transactions Subject to Tax (enter from Schedule S02A) | B12: S02A
A13: 8. Total of Transactions Subject to Tax (add lines 1 through 7 for each column) | C13: =SUM(C6:C12) -> 113526 | D13: =SUM(D6:D12) -> 17110 | E13: =SUM(E6:E12) -> 0 | F13: =SUM(F6:F12) -> 0 | G13: =SUM(G6:G12) -> 0
A14: intentionally left blank
A15: SECTION B. TAX-PAID CREDITS | B15: FROM SCHEDULE | C15: A ALL OTHER DIESEL AT CURRENT RATE | D15: B ALL OTHER DIESEL AT ALTERNATE RATE #1 | E15: C ALL OTHER DIESEL AT ALTERNATE RATE #2 | F15: D ALL OTHER DIESEL AT ALTERNATE RATE #3 | G15: E ALL OTHER DIESEL AT ALTERNATE RATE #4
A16: 1. Tax-Paid Fuel Exported (enter from Schedule 13A) | B16: 13A | C16: 14605 | D16: 605
A17: 2. Tax-Paid Fuel Sold to a Consulate Officer or Employee by Credit Card (enter from Schedule 13B) | B17: 13B | C17: 15000 | D17: 700
A18: 3. Tax-Paid Fuel Sold to the United States Government (enter from Schedule 13C) | B18: 13C | C18: 15200 | D18: 500
A19: 4. Tax-paid Fuel Sold for Use on Farms (enter from Schedule 13D) | B19: 13D | C19: 560 | D19: 50
A20: 5. Tax-paid Fuel Sold to Exempt Bus Operators (enter from Schedule 13E) | B20: 13E | C20: 1550 | D20: 500
A21: 6. Tax-paid Fuel Sold to Train Operators (enter from Schedule 13G) | B21: 13G | C21: 14685 | D21: 600
A22: 7. Tax-Paid Fuel Used in an Exempt Manner Not Reportable on Another Schedule (enter from Schedule 13J) | B22: 13J | C22: 7100 | D22: 300
A23: 8. Tax-Paid Fuel Removed From a Terminal (enter from Schedule 13M) | B23: 13M | C23: 15360 | D23: 610
A24: 9. Tax-Paid Fuel Used to Manufacture Other Products (enter from Schedule 13N) | B24: 13N | C24: 8100 | D24: 200
A25: 10. Other Tax-Paid Credits (enter from Schedules S03A and S04) | B25: S03A & S04
A26: 11. Total of Tax-Paid Credits (add lines 1 through 10 for each column) | B26: intentionally left blank | C26: =SUM(C16:C25) -> 92160 | D26: =SUM(D16:D25) -> 4065 | E26: =SUM(E16:E25) -> 0 | F26: =SUM(F16:F25) -> 0 | G26: =SUM(G16:G25) -> 0
A27: intentionally left blank
A28: SECTION C. TAXABLE GALLONS COMPUTATION | B28: FROM SCHEDULE | C28: ALL OTHER DIESEL AT CURRENT RATE | D28: ALL OTHER DIESEL AT ALTERNATE RATE #1 | E28: ALL OTHER DIESEL AT ALTERNATE RATE #2 | F28: ALL OTHER DIESEL AT ALTERNATE RATE #3 | G28: ALL OTHER DIESEL AT ALTERNATE RATE #4
A29: 1. Total gallons from transactions subject to tax (from section A, line 8 for each column) | B29: intentionallly left blank | C29: =+C13 -> 113526 | D29: =+D13 -> 17110 | E29: =+E13 -> 0 | F29: =+F13 -> 0 | G29: =+G13 -> 0
A30: 2. Total gallons of tax-paid credits (from section B, line 11 for each column) | B30: intentionallly left blank | C30: =+C26 -> 92160 | D30: =+D26 -> 4065 | E30: =+E26 -> 0 | F30: =+F26 -> 0 | G30: =+G26 -> 0
A31: 3. TAXABLE GALLONS (subtract line 2 from line 1. This may be a negative amount. Enter this amount on line 1 on the front of the return.) | B31: intentionallly left blank | C31: =+C29-C30 -> 21366 | D31: =+D29-D30 -> 13045 | E31: =+E29-E30 -> 0 | F31: =+F29-F30 -> 0 | G31: =+G29-G30 -> 0
A32: Preparation of the Tax Computation Worksheet
A33: A. Taxable Transactions
A34: Line 1. Enter, by tax rate, the total gallons of ex-tax diesel fuel imported into California below the terminal rack by adding the billed gallons (column P of the Schedule worksheet) of all Schedule 3X transactions for taxable products. Refer to forms CDTFA-810-FTA or CDTFA-810-FTB for a list identifying products and their taxability.
A35: Line 2. Enter, by tax rate, the total gallons of diesel fuel removed from California terminal racks that were subject to tax during the reporting period by adding the billed gallons (column P of the Schedule worksheet) of all Schedule 5 transactions.
A36: Line 3. Enter, by tax rate, the total gallons of diesel fuel sold above the rack to unlicensed parties that were subject to tax during the reporting period by adding the billed gallons (column P of the Schedule worksheet) of all Schedule 5A transactions.
A37: Line 4. Enter, by tax rate, the total gallons of diesel fuel used by you during the reporting period by adding the totals (column P of the Schedule worksheet) for each disbursement schedule coded 5Q.
A38: Line 5. Enter, by tax rate, the total gallons of untaxed products blended with or added to diesel fuel resulting in a product which is used as or usable as diesel fuel during the reporting period by adding the billed gallons (column P of the Schedule worksheet) of all Schedule 5W transactions.
A39: Line 6. Enter, by tax rate, the difference between gross gallons sold to customers and net gallons purchased from suppliers by adding the totals (column P of the Schedule worksheet) for each disbursement schedule coded 5X.
A40: Line 7. Enter, by tax rate, the total gallons of miscellaneous diesel fuel that are subject to tax during the reporting period by adding the billed gallons (column P of the Schedule worksheet) of all Schedule S02A transactions.
A41: Line 8. Enter, by tax rate, the subtotal of gallons of diesel fuel transactions subject to tax during the reporting period by adding lines 1 through 7 for Columns A through E.
A42: B. Tax-Paid Credits
A43: Line 1. Enter, by tax rate, the total gallons of tax-paid diesel fuel exported below the California terminal racks by adding the billed gallons (column P of the Schedule worksheet) of all Schedule 13A transactions.
A44: Line 2. Enter, by tax rate, the total gallons of tax-paid diesel fuel sold to a consulate officer or employee by credit card by adding the billed gallons (column P of the Schedule worksheet) of all Schedule 13B transactions.
A45: Line 3. Enter, by tax rate, the total gallons of tax-paid diesel fuel sold to the United States Government by adding the billed gallons (column P of the Schedule worksheet) of all Schedule 13C transactions.
A46: Line 4. Enter, by tax rate, the total gallons of tax-paid diesel fuel sold to a person who uses the fuel for farming purposes by adding the billed gallons (column P of the Schedule worksheet) of all Schedule 13D transactions.
A47: Line 5. Enter, by tax rate, the total gallons of tax-paid diesel fuel sold to exempt bus operators by adding the billed gallons (column P of the Schedule worksheet) of all Schedule 13E transactions.
A48: Line 6. Enter, by tax rate, the total gallons of tax-paid diesel fuel sold to train operators by adding the billed gallons (column P of the Schedule worksheet) of all Schedule 13G transactions.
A49: Line 7. Enter, by tax rate, the total gallons of tax-paid diesel fuel by tax rate used in an exempt manner not reportable on any other credit schedule by adding the totals (column P of the Schedule worksheet) for each disbursement schedule coded 13J.
A50: Line 8. Enter, by tax rate, the total gallons of tax-paid diesel fuel by tax rate removed from a terminal as a second taxable event by adding the totals (column P of the Schedule worksheet) for each disbursement schedule coded 13M.
A51: Line 9. Enter, by tax rate, the total gallons of tax-paid diesel fuel by tax rate used to manufacture other products by adding the totals (column P of the Schedule worksheet) for each disbursement schedule coded 13N.
A52: Line 10. Enter, by tax rate, the total gallons of other tax-paid diesel fuel allowed to be taken as a tax-paid credit by adding the billed gallons (column P of the Schedule worksheet) of all Schedule S03A and S04 transactions.
A53: Line 11. Enter, by tax rate, the subtotal of gallons of diesel fuel transactions subject to credit during the reporting period by adding lines 1 through 10 for Columns A through E.
A54: C. Taxable Gallons Computation
A55: Line 1. Enter the total gallons from transactions subject to tax from section A, line 8 for each column.
A56: Line 2. Enter the total gallons of tax-paid credits from section B, line 11 for each column.
A57: Line 3. Calculate taxable gallons at each tax rate by subtracting line 2 from line 1 for each column. Enter this amount in the corresponding field on line 1 on the front of the return (Cover worksheet).
A58: End of Worksheet

Sheet Tables (CDTFA Staff Only) (hidden)
A1: CDTFA USE ONLY DO NOT MODIFY | C1: CDTFA USE ONLY DO NOT MODIFY | D1: Schedule Codes | E1: Mode Codes | F1: Epay Account TypePermutations
D2: 1A | E2: J | F2: DBTCHK
D3: 5 | E3: IJ | F3: DBTSAV
D4: 7 | E4: EJ | F4: DBTCCK
D5: 8 | E5: B | F5: DBTCSV
D6: 10C | E6: IB | F6: dbtchk
D7: 10I | E7: EB | F7: dbtsav
D8: 10Y | E8: R | F8: dbtcck
D9: 12A | E9: IR | F9: dbtcsv
D10: 12B | E10: ER | F10: dbtccK
D11: 12C | E11: PL | F11: dbtcCk
D12: 13A | E12: IP | F12: dbtcCK
D13: 13B | E13: EP | F13: dbtCck
D14: 13C | E14: S | F14: dbtCcK
D15: 13D | E15: IS | F15: dbtCCk
D16: 13E | E16: ES | F16: dbtCCK
A17: Not Used | D17: 13G | E17: RT | F17: dbTcck
A18: Not Used | D18: 13J | E18: RS | F18: dbTccK
A19: Random Generated Interchange Control Number | B19: 533424486 | D19: 13M | E19: RR | F19: dbTcCk
A20: Period Beginning Date From Cover | B20: 7/1/2019 | D20: 13N | E20: RF | F20: dbTcCK
A21: Period End Date From Cover | B21: 7/30/2019 | D21: 2X | E21: AH | F21: dbTCck
A22: Default Date | B22: 01/01/2002 | D22: 3A | E22: AJ | F22: dbTCcK
A23: First Date Return in Valid | B23: 01/01/2019 | D23: 3X | E23: BA | F23: dbTCCk
A24: CDTFA Internal Version Number | B24: 4.0.1 | D24: 3Y | E24: CE | F24: dbTCCK
D25: 5A | E25: GS | F25: dBtcck
D26: 5Q | E26: ST | F26: dBtccK
D27: 5W | E27: j | F27: dBtcCk
D28: 5X | E28: ij | F28: dBtcCK
D29: 6F | E29: iJ | F29: dBtCck
D30: 6X | E30: Ij | F30: dBtCcK
D31: 7D | E31: ej | F31: dBtCCk
D32: 7F | E32: eJ | F32: dBtCCK
D33: S02A | E33: Ej | F33: dBTcck
D34: S03A | E34: b | F34: dBTccK
D35: S04 | E35: ib | F35: dBTcCk
D36: S05I | E36: iB | F36: dBTcCK
D37: 1a | E37: Ib | F37: dBTCck
A38: Report Type | B38: SDR | D38: 10c | E38: eb | F38: dBTCcK
A39: File Type | B39: FLT | D39: 10i | E39: eB | F39: dBTCCk
A40: Version | B40: 4.0 | D40: 10y | E40: Eb | F40: dBTCCK
A41: BOE/CDTFA DUNS # | B41: 617856943 | D41: 12a | E41: r | F41: Dbtcck
D42: 12b | E42: ir | F42: DbtccK
D43: 12c | E43: iR | F43: DbtcCk
D44: 13a | E44: Ir | F44: DbtcCK
D45: 13b | E45: er | F45: DbtCck
D46: 13c | E46: eR | F46: DbtCcK
D47: 13d | E47: Er | F47: DbtCCk
D48: 13e | E48: pl | F48: DbtCCK
D49: 13g | E49: pL | F49: DbTcck
D50: 13j | E50: Pl | F50: DbTccK
D51: 13m | E51: ip | F51: DbTcCk
D52: 13n | E52: iP | F52: DbTcCK
D53: 2x | E53: Ip | F53: DbTCck
D54: 3a | E54: ep | F54: DbTCcK
D55: 3x | E55: eP | F55: DbTCCk
D56: 3y | E56: Ep | F56: DbTCCK
D57: 5a | E57: s | F57: DBtcck
D58: 5q | E58: is | F58: DBtccK
D59: 5w | E59: iS | F59: DBtcCk
D60: 5x | E60: Is | F60: DBtcCK
D61: 6f | E61: es | F61: DBtCck
D62: 6x | E62: eS | F62: DBtCcK
D63: 7d | E63: Es | F63: DBtCCk
D64: 7f | E64: rt | F64: DBtCCK
D65: s02a | E65: rT | F65: DBTcck
D66: S02a | E66: Rt | F66: DBTccK
D67: s02A | E67: rs | F67: DBTcCk
D68: s03a | E68: rS | F68: DBTcCK
D69: S03a | E69: Rs | F69: DBTCck
D70: s03A | E70: rr | F70: DBTCcK
D71: s04 | E71: rR | F71: DBTCCk
D72: s05i | E72: Rr | F72: dbtcsV
D73: S05i | E73: rf | F73: dbtcSv
D74: s05I | E74: rF | F74: dbtcSV
E75: Rf | F75: dbtCsv
E76: ah | F76: dbtCsV
E77: aH | F77: dbtCSv
E78: Ah | F78: dbtCSV
E79: aj | F79: dbTcsv
E80: aJ | F80: dbTcsV
E81: Aj | F81: dbTcSv
E82: ba | F82: dbTcSV
E83: bA | F83: dbTCsv
E84: Ba | F84: dbTCsV
E85: ce | F85: dbTCSv
E86: cE | F86: dbTCSV
E87: Ce | F87: dBtcsv
E88: gs | F88: dBtcsV
E89: gS | F89: dBtcSv
E90: Gs | F90: dBtcSV
E91: st | F91: dBtCsv
E92: sT | F92: dBtCsV
E93: St | F93: dBtCSv
F94: dBtCSV
F95: dBTcsv
F96: dBTcsV
F97: dBTcSv
F98: dBTcSV
F99: dBTCsv
F100: dBTCsV
F101: dBTCSv
F102: dBTCSV
F103: Dbtcsv
F104: DbtcsV
F105: DbtcSv
F106: DbtcSV
F107: DbtCsv
F108: DbtCsV
F109: DbtCSv
F110: DbtCSV
F111: DbTcsv
F112: DbTcsV
F113: DbTcSv
F114: DbTcSV
F115: DbTCsv
F116: DbTCsV
F117: DbTCSv
F118: DbTCSV
F119: DBtcsv
F120: DBtcsV
F121: DBtcSv
F122: DBtcSV
F123: DBtCsv
F124: DBtCsV
F125: DBtCSv
F126: DBtCSV
F127: DBTcsv
F128: DBTcsV
F129: DBTcSv
F130: DBTcSV
F131: DBTCsv
F132: DBTCsV
F133: DBTCSv
F134: dbtchK
F135: dbtcHk
F136: dbtcHK
F137: dbtChk
F138: dbtChK
F139: dbtCHk
F140: dbtCHK
F141: dbTchk
F142: dbTchK
F143: dbTcHk
F144: dbTcHK
F145: dbTChk
F146: dbTChK
F147: dbTCHk
F148: dbTCHK
F149: dBtchk
F150: dBtchK
F151: dBtcHk
F152: dBtcHK
F153: dBtChk
F154: dBtChK
F155: dBtCHk
F156: dBtCHK
F157: dBTchk
F158: dBTchK
F159: dBTcHk
F160: dBTcHK
F161: dBTChk
F162: dBTChK
F163: dBTCHk
F164: dBTCHK
F165: Dbtchk
F166: DbtchK
F167: DbtcHk
F168: DbtcHK
F169: DbtChk
F170: DbtChK
F171: DbtCHk
F172: DbtCHK
F173: DbTchk
F174: DbTchK
F175: DbTcHk
F176: DbTcHK
F177: DbTChk
F178: DbTChK
F179: DbTCHk
F180: DbTCHK
F181: DBtchk
F182: DBtchK
F183: DBtcHk
F184: DBtcHK
F185: DBtChk
F186: DBtChK
F187: DBtCHk
F188: DBtCHK
F189: DBTchk
F190: DBTchK
F191: DBTcHk
F192: DBTcHK
F193: DBTChk
F194: DBTChK
F195: DBTCHk
F196: dbtsaV
F197: dbtsAv
F198: dbtsAV
F199: dbtSav
F200: dbtSaV
... 57 more rows
